[Event "Early-Titled-Tuesday-Blitz-February-06-2024"]
[Site "Chess.com"]
[Date "2024.02.06"]
[Round "1"]
[White "edgarhay012"]
[Black "Korchmar_Vasiliy"]
[Result "0-1"]
[WhiteElo "2369"]
[BlackElo "2702"]
[TimeControl "180+1"]
[EndTime "8:07:32 PST"]
[Termination "Korchmar_Vasiliy won by checkmate"]

1. e4 {[%clk 0:03:00.9]} 1... c5 {[%clk 0:03:00]} 2. Nc3 {[%clk 0:03:00.5]} 2...
d6 {[%clk 0:03:00.2]} 3. d4 {[%clk 0:03:00.5]} 3... cxd4 {[%clk 0:03:00.7]} 4.
Qxd4 {[%clk 0:03:01.4]} 4... Nc6 {[%clk 0:03:00.6]} 5. Qd2 {[%clk 0:03:02]} 5...
g6 {[%clk 0:03:00.3]} 6. b3 {[%clk 0:03:02.4]} 6... Bh6 {[%clk 0:03:00]} 7. f4
{[%clk 0:03:02.8]} 7... Nf6 {[%clk 0:03:00.6]} 8. Bb2 {[%clk 0:03:00.4]} 8...
O-O {[%clk 0:03:00.3]} 9. O-O-O {[%clk 0:02:56.9]} 9... a5 {[%clk 0:03:00.7]}
10. a4 {[%clk 0:02:53.2]} 10... Nb4 {[%clk 0:03:00.9]} 11. Kb1 {[%clk
0:02:50.6]} 11... Qb6 {[%clk 0:03:01]} 12. h3 {[%clk 0:02:43.8]} 12... Be6
{[%clk 0:03:00.2]} 13. g4 {[%clk 0:02:36.4]} 13... Bg7 {[%clk 0:02:56]} 14. f5
{[%clk 0:02:27.4]} 14... Bd7 {[%clk 0:02:53.8]} 15. Nge2 {[%clk 0:02:11.2]}
15... Rac8 {[%clk 0:02:52.7]} 16. Nf4 {[%clk 0:02:09]} 16... Rxc3 {[%clk
0:02:44.7]} 17. Qxc3 {[%clk 0:02:04.9]} 17... Rc8 {[%clk 0:02:41.1]} 18. Bc4
{[%clk 0:01:59.2]} 18... Ne8 {[%clk 0:02:00.1]} 19. Qd2 {[%clk 0:01:47.5]} 19...
Rxc4 {[%clk 0:01:36.1]} 20. bxc4 {[%clk 0:00:33.2]} 20... Nd5 {[%clk 0:01:34.5]}
21. c3 {[%clk 0:00:26.1]} 21... Nxc3+ {[%clk 0:01:16.6]} 22. Kc1 {[%clk
0:00:22.9]} 22... Na2+ {[%clk 0:01:14.8]} 23. Kb1 {[%clk 0:00:21.7]} 23... Nc3+
{[%clk 0:00:33.4]} 24. Kc1 {[%clk 0:00:20.9]} 24... Nxe4 {[%clk 0:00:34.1]} 25.
Nd5 {[%clk 0:00:13.3]} 25... Qb3 {[%clk 0:00:34.2]} 26. Qc2 {[%clk 0:00:11.7]}
26... Bxb2+ {[%clk 0:00:30.5]} 27. Qxb2 {[%clk 0:00:12.6]} 27... Qxc4+ {[%clk
0:00:31]} 28. Kb1 {[%clk 0:00:13.2]} 28... Bxa4 {[%clk 0:00:24.6]} 29. Rd4
{[%clk 0:00:12.4]} 29... Qc5 {[%clk 0:00:11.3]} 30. Nxe7+ {[%clk 0:00:12.6]}
30... Kf8 {[%clk 0:00:11.3]} 31. Rxe4 {[%clk 0:00:13.4]} 31... Nf6 {[%clk
0:00:06.2]} 32. Qxf6 {[%clk 0:00:11.5]} 32... Bc2+ {[%clk 0:00:06.1]} 33. Ka1
{[%clk 0:00:11.1]} 33... Bxe4 {[%clk 0:00:07]} 34. Nxg6+ {[%clk 0:00:05.2]}
34... hxg6 {[%clk 0:00:06.3]} 35. Qd8+ {[%clk 0:00:04.8]} 35... Kg7 {[%clk
0:00:06.3]} 36. f6+ {[%clk 0:00:03.4]} 36... Kh7 {[%clk 0:00:06.6]} 37. Rd1
{[%clk 0:00:02.3]} 37... Qa3# {[%clk 0:00:06.7]} 0-1

[Event "Early-Titled-Tuesday-Blitz-February-06-2024"]
[Site "Chess.com"]
[Date "2024.02.06"]
[Round "1"]
[White "Janosik"]
[Black "AttilaTurzo"]
[Result "1-0"]
[WhiteElo "2869"]
[BlackElo "2472"]
[TimeControl "180+1"]
[EndTime "8:07:33 PST"]
[Termination "Janosik won by resignation"]

1. d4 {[%clk 0:03:00.9]} 1... d5 {[%clk 0:02:59.9]} 2. c4 {[%clk 0:02:59.9]}
2... c6 {[%clk 0:03:00.8]} 3. Nc3 {[%clk 0:02:59.9]} 3... Nf6 {[%clk 0:03:00.8]}
4. e3 {[%clk 0:03:00.5]} 4... e6 {[%clk 0:02:56.6]} 5. Nf3 {[%clk 0:03:00.5]}
5... Nbd7 {[%clk 0:02:57.2]} 6. Be2 {[%clk 0:03:01]} 6... Bd6 {[%clk 0:02:55.5]}
7. O-O {[%clk 0:03:00.4]} 7... O-O {[%clk 0:02:56]} 8. b3 {[%clk 0:03:00.5]}
8... b6 {[%clk 0:02:55.7]} 9. Bb2 {[%clk 0:03:01.1]} 9... Bb7 {[%clk 0:02:55.5]}
10. Rc1 {[%clk 0:03:01.7]} 10... Re8 {[%clk 0:02:53.9]} 11. Bd3 {[%clk
0:03:01.5]} 11... Qe7 {[%clk 0:02:52.1]} 12. Re1 {[%clk 0:02:59.3]} 12... Rac8
{[%clk 0:02:47.6]} 13. e4 {[%clk 0:02:58.3]} 13... dxe4 {[%clk 0:02:47.1]} 14.
Nxe4 {[%clk 0:02:59.2]} 14... Nxe4 {[%clk 0:02:46.7]} 15. Bxe4 {[%clk
0:03:00.1]} 15... Nf6 {[%clk 0:02:46.7]} 16. Bb1 {[%clk 0:03:00.2]} 16... c5
{[%clk 0:02:45.9]} 17. d5 {[%clk 0:03:00.1]} 17... Qc7 {[%clk 0:02:40.2]} 18.
Qd3 {[%clk 0:02:36.6]} 18... e5 {[%clk 0:02:19.7]} 19. Qf5 {[%clk 0:02:33]}
19... Rcd8 {[%clk 0:01:49.8]} 20. Bxe5 {[%clk 0:02:07.8]} 20... Bxe5 {[%clk
0:01:31.1]} 21. Rxe5 {[%clk 0:01:33.1]} 21... Rxe5 {[%clk 0:01:28.8]} 22. Qxe5
{[%clk 0:01:33.4]} 22... Qxe5 {[%clk 0:01:23.8]} 23. Nxe5 {[%clk 0:01:34.3]}
23... Ne8 {[%clk 0:01:17.8]} 24. f4 {[%clk 0:01:27.2]} 24... Nd6 {[%clk
0:01:17.3]} 25. Kf2 {[%clk 0:01:27.8]} 25... f6 {[%clk 0:01:15.1]} 26. Nf3
{[%clk 0:01:27.4]} 26... Bc8 {[%clk 0:01:13.6]} 27. h3 {[%clk 0:01:23.4]} 27...
Kf7 {[%clk 0:01:05.2]} 28. g4 {[%clk 0:01:21.2]} 28... g6 {[%clk 0:01:01.9]} 29.
Re1 {[%clk 0:01:10.2]} 29... Bd7 {[%clk 0:01:00.6]} 30. Kg3 {[%clk 0:01:10.1]}
30... b5 {[%clk 0:00:58.7]} 31. cxb5 {[%clk 0:00:47.4]} 31... Bxb5 {[%clk
0:00:54.8]} 32. Rc1 {[%clk 0:00:45.5]} 32... Rc8 {[%clk 0:00:48.9]} 33. g5
{[%clk 0:00:44.7]} 33... c4 {[%clk 0:00:41.7]} 34. Nd4 {[%clk 0:00:42.7]} 34...
Bd7 {[%clk 0:00:37.1]} 35. b4 {[%clk 0:00:38.2]} 35... Re8 {[%clk 0:00:30.4]}
36. Kf2 {[%clk 0:00:32.7]} 36... Ne4+ {[%clk 0:00:18.1]} 37. Bxe4 {[%clk
0:00:32.1]} 37... Rxe4 {[%clk 0:00:19]} 38. Rxc4 {[%clk 0:00:31.1]} 38... Rxf4+
{[%clk 0:00:18.1]} 39. Ke3 {[%clk 0:00:30.2]} 39... fxg5 {[%clk 0:00:17.9]} 40.
Rc7 {[%clk 0:00:27.6]} 40... Ke8 {[%clk 0:00:16.9]} 41. Rxa7 {[%clk 0:00:27.4]}
41... h5 {[%clk 0:00:15.5]} 42. Nc6 {[%clk 0:00:26.3]} 42... Bxh3 {[%clk
0:00:14.8]} 43. b5 {[%clk 0:00:24.2]} 43... Bg2 {[%clk 0:00:13.4]} 44. Re7+
{[%clk 0:00:22.9]} 44... Kf8 {[%clk 0:00:13]} 45. d6 {[%clk 0:00:21.7]} 45...
Re4+ {[%clk 0:00:09.9]} 46. Rxe4 {[%clk 0:00:20.9]} 46... Bxe4 {[%clk
0:00:09.5]} 47. d7 {[%clk 0:00:21.4]} 1-0

[Event "Early-Titled-Tuesday-Blitz-February-06-2024"]
[Site "Chess.com"]
[Date "2024.02.06"]
[Round "1"]
[White "elchacal664"]
[Black "adotand"]
[Result "0-1"]
[WhiteElo "2489"]
[BlackElo "2887"]
[TimeControl "180+1"]
[EndTime "8:07:34 PST"]
[Termination "adotand won by resignation"]

1. e4 {[%clk 0:03:00.9]} 1... c5 {[%clk 0:03:00.6]} 2. Nc3 {[%clk 0:02:59]} 2...
Nc6 {[%clk 0:03:01]} 3. f4 {[%clk 0:02:59.2]} 3... g6 {[%clk 0:03:00.6]} 4. Bc4
{[%clk 0:02:59.5]} 4... Bg7 {[%clk 0:03:00.8]} 5. Nf3 {[%clk 0:02:59.4]} 5... d6
{[%clk 0:03:00.4]} 6. d3 {[%clk 0:02:59.8]} 6... e6 {[%clk 0:02:56.2]} 7. O-O
{[%clk 0:03:00.2]} 7... Nge7 {[%clk 0:02:56.8]} 8. Qe1 {[%clk 0:02:59.5]} 8...
Na5 {[%clk 0:02:50.4]} 9. f5 {[%clk 0:02:52.9]} 9... Nxc4 {[%clk 0:02:48.6]} 10.
fxg6 {[%clk 0:02:37.5]} 10... Nb6 {[%clk 0:02:31.6]} 11. gxf7+ {[%clk
0:02:25.8]} 11... Kf8 {[%clk 0:02:24.4]} 12. Qh4 {[%clk 0:02:19.4]} 12... h6
{[%clk 0:02:17.1]} 13. Qh5 {[%clk 0:02:10.8]} 13... e5 {[%clk 0:02:11.7]} 14. a4
{[%clk 0:01:54.5]} 14... Be6 {[%clk 0:02:11.4]} 15. Nh4 {[%clk 0:01:54]} 15...
Nd7 {[%clk 0:02:05.1]} 16. Be3 {[%clk 0:01:25.2]} 16... Nf6 {[%clk 0:02:01.8]}
17. Qe2 {[%clk 0:01:19.6]} 17... Bxf7 {[%clk 0:01:58.5]} 18. Rf2 {[%clk
0:01:18.7]} 18... Ng6 {[%clk 0:01:44.9]} 19. Nf5 {[%clk 0:01:17.7]} 19... Kg8
{[%clk 0:01:40]} 20. Nxg7 {[%clk 0:01:17.2]} 20... Kxg7 {[%clk 0:01:40.3]} 21.
Raf1 {[%clk 0:01:16.9]} 21... Qe7 {[%clk 0:01:29.5]} 22. Rxf6 {[%clk 0:01:16.7]}
22... Qxf6 {[%clk 0:01:30.2]} 23. Rxf6 {[%clk 0:01:16.9]} 23... Kxf6 {[%clk
0:01:31.1]} 24. Qf3+ {[%clk 0:01:12.4]} 24... Ke7 {[%clk 0:01:30.8]} 25. Nd5+
{[%clk 0:01:13]} 25... Bxd5 {[%clk 0:01:30.8]} 26. exd5 {[%clk 0:01:13]} 26...
Raf8 {[%clk 0:01:26.6]} 27. Qh3 {[%clk 0:01:13.3]} 27... Rf6 {[%clk 0:01:23.4]}
28. Bf2 {[%clk 0:00:57.3]} 28... Rhf8 {[%clk 0:01:16.7]} 29. Bh4 {[%clk
0:00:57.2]} 29... Nxh4 {[%clk 0:01:16.5]} 30. Qxh4 {[%clk 0:00:58.1]} 30... Kd7
{[%clk 0:01:17]} 31. h3 {[%clk 0:00:56]} 31... Kc7 {[%clk 0:01:15.5]} 32. a5
{[%clk 0:00:47.7]} 32... R8f7 {[%clk 0:01:15.2]} 33. a6 {[%clk 0:00:47.5]} 33...
b5 {[%clk 0:01:14]} 34. c4 {[%clk 0:00:41.3]} 34... Rf4 {[%clk 0:01:07.2]} 35.
Qe1 {[%clk 0:00:30.3]} 35... Kb6 {[%clk 0:01:05.6]} 36. cxb5 {[%clk 0:00:30.4]}
36... Kxb5 {[%clk 0:01:04.9]} 37. Qc1 {[%clk 0:00:29.6]} 37... Kxa6 {[%clk
0:01:04]} 38. Qa1+ {[%clk 0:00:27.6]} 38... Kb6 {[%clk 0:01:04.4]} 39. Qa3
{[%clk 0:00:26]} 39... a5 {[%clk 0:01:02.9]} 40. Qb3+ {[%clk 0:00:25.7]} 40...
Rb4 {[%clk 0:01:03.6]} 41. Qc3 {[%clk 0:00:25.8]} 41... a4 {[%clk 0:01:03.3]}
42. Qd2 {[%clk 0:00:23.6]} 42... Rff4 {[%clk 0:00:59.5]} 43. g3 {[%clk
0:00:22.6]} 43... Rf6 {[%clk 0:01:00.1]} 44. g4 {[%clk 0:00:19.2]} 44... Rbf4
{[%clk 0:00:56.1]} 45. Kg2 {[%clk 0:00:19]} 45... Kb5 {[%clk 0:00:55.9]} 46. Kg3
{[%clk 0:00:18.6]} 46... Rf3+ {[%clk 0:00:54.5]} 47. Kg2 {[%clk 0:00:18.7]}
47... R3f4 {[%clk 0:00:50.6]} 48. Qc2 {[%clk 0:00:18.2]} 48... Rd4 {[%clk
0:00:48.8]} 49. Qd2 {[%clk 0:00:15.6]} 49... Rxd5 {[%clk 0:00:47.2]} 50. Qe2
{[%clk 0:00:11.1]} 50... Rd4 {[%clk 0:00:46.7]} 51. h4 {[%clk 0:00:11.5]} 51...
Rff4 {[%clk 0:00:45.8]} 52. Kg3 {[%clk 0:00:11.4]} 52... Rxg4+ {[%clk
0:00:43.3]} 53. Qxg4 {[%clk 0:00:12.3]} 53... Rxg4+ {[%clk 0:00:44]} 54. Kxg4
{[%clk 0:00:13.2]} 54... c4 {[%clk 0:00:44.7]} 55. Kh5 {[%clk 0:00:14.1]} 55...
cxd3 {[%clk 0:00:45]} 56. Kxh6 {[%clk 0:00:14.5]} 56... d2 {[%clk 0:00:45.9]}
57. Kg7 {[%clk 0:00:15]} 57... d1=Q {[%clk 0:00:46.8]} 58. h5 {[%clk 0:00:15.5]}
58... Qxh5 {[%clk 0:00:47.4]} 0-1

[Event "Early-Titled-Tuesday-Blitz-February-06-2024"]
[Site "Chess.com"]
[Date "2024.02.06"]
[Round "1"]
[White "invisible_s0ul"]
[Black "Caroexpert"]
[Result "1/2-1/2"]
[WhiteElo "2242"]
[BlackElo "2581"]
[TimeControl "180+1"]
[EndTime "8:07:34 PST"]
[Termination "Game drawn by repetition"]

1. e4 {[%clk 0:03:00.9]} 1... e5 {[%clk 0:02:51.5]} 2. Nf3 {[%clk 0:03:01.3]}
2... d6 {[%clk 0:02:50.9]} 3. d4 {[%clk 0:02:57.9]} 3... exd4 {[%clk 0:02:51.3]}
4. Nxd4 {[%clk 0:02:58.8]} 4... Nf6 {[%clk 0:02:50.8]} 5. Bd3 {[%clk 0:02:57]}
5... Nc6 {[%clk 0:02:49.2]} 6. Nxc6 {[%clk 0:02:56.6]} 6... bxc6 {[%clk
0:02:49.9]} 7. O-O {[%clk 0:02:57.3]} 7... Be7 {[%clk 0:02:49.7]} 8. f4 {[%clk
0:02:52.7]} 8... O-O {[%clk 0:02:47.9]} 9. Nc3 {[%clk 0:02:49.9]} 9... d5 {[%clk
0:02:47.4]} 10. e5 {[%clk 0:02:49.3]} 10... Bc5+ {[%clk 0:02:45.7]} 11. Kh1
{[%clk 0:02:45.9]} 11... Ng4 {[%clk 0:02:46]} 12. Qe1 {[%clk 0:02:10.2]} 12...
f6 {[%clk 0:01:51.1]} 13. h3 {[%clk 0:01:59.9]} 13... fxe5 {[%clk 0:01:49.2]}
14. hxg4 {[%clk 0:01:55.3]} 14... Bxg4 {[%clk 0:01:49.7]} 15. fxe5 {[%clk
0:01:39.1]} 15... Rxf1+ {[%clk 0:01:27.9]} 16. Bxf1 {[%clk 0:01:40]} 16... Qe7
{[%clk 0:01:26.6]} 17. Bf4 {[%clk 0:01:24.5]} 17... Rf8 {[%clk 0:01:23.2]} 18.
Qg3 {[%clk 0:01:09.6]} 18... Qe6 {[%clk 0:00:33.9]} 19. Be2 {[%clk 0:00:58.1]}
19... Bxe2 {[%clk 0:00:21.7]} 20. Nxe2 {[%clk 0:00:59]} 20... Qf5 {[%clk
0:00:21.6]} 21. Qd3 {[%clk 0:00:15.7]} 21... Qh5+ {[%clk 0:00:19]} 22. Bh2
{[%clk 0:00:16.4]} 22... Rf2 {[%clk 0:00:17.3]} 23. Ng3 {[%clk 0:00:11.7]} 23...
Qg4 {[%clk 0:00:12.9]} 24. Rf1 {[%clk 0:00:11.7]} 24... h5 {[%clk 0:00:09.9]}
25. Rxf2 {[%clk 0:00:11.4]} 25... Bxf2 {[%clk 0:00:10.8]} 26. Qf3 {[%clk
0:00:11.8]} 26... Qd4 {[%clk 0:00:08.2]} 27. c3 {[%clk 0:00:08]} 27... Qb6
{[%clk 0:00:07.6]} 28. Qxh5 {[%clk 0:00:05.4]} 28... Qxb2 {[%clk 0:00:05.8]} 29.
Qe8+ {[%clk 0:00:06]} 29... Kh7 {[%clk 0:00:04.5]} 30. Qh5+ {[%clk 0:00:06.7]}
30... Kg8 {[%clk 0:00:04.7]} 31. Qe8+ {[%clk 0:00:02.6]} 31... Kh7 {[%clk
0:00:04.6]} 32. Qh5+ {[%clk 0:00:03.1]} 32... Kg8 {[%clk 0:00:04.8]} 1/2-1/2

[Event "Early-Titled-Tuesday-Blitz-February-06-2024"]
[Site "Chess.com"]
[Date "2024.02.06"]
[Round "1"]
[White "Predator0608"]
[Black "lachesisQ"]
[Result "1-0"]
[WhiteElo "2545"]
[BlackElo "3078"]
[TimeControl "180+1"]
[EndTime "8:07:35 PST"]
[Termination "Predator0608 won by checkmate"]

1. e4 {[%clk 0:03:00.9]} 1... c5 {[%clk 0:02:58]} 2. Nf3 {[%clk 0:03:01.2]} 2...
d6 {[%clk 0:02:58.3]} 3. d4 {[%clk 0:03:01.7]} 3... cxd4 {[%clk 0:02:59.2]} 4.
Nxd4 {[%clk 0:03:02.5]} 4... Nf6 {[%clk 0:02:59.7]} 5. Nc3 {[%clk 0:03:03.1]}
5... a6 {[%clk 0:02:59.7]} 6. Be3 {[%clk 0:03:03.6]} 6... Ng4 {[%clk 0:02:58.4]}
7. Bg5 {[%clk 0:03:03]} 7... h6 {[%clk 0:02:58.5]} 8. Bh4 {[%clk 0:03:03.3]}
8... g5 {[%clk 0:02:58.4]} 9. Bg3 {[%clk 0:03:03.6]} 9... Bg7 {[%clk 0:02:58.7]}
10. h3 {[%clk 0:02:59.7]} 10... Ne5 {[%clk 0:02:57.6]} 11. Qd2 {[%clk 0:02:57]}
11... Nbc6 {[%clk 0:02:57.3]} 12. O-O-O {[%clk 0:02:53.9]} 12... Nxd4 {[%clk
0:02:54.1]} 13. Qxd4 {[%clk 0:02:54.8]} 13... Be6 {[%clk 0:02:54]} 14. Nd5
{[%clk 0:02:13.6]} 14... Rc8 {[%clk 0:02:51]} 15. Kb1 {[%clk 0:02:04.7]} 15...
O-O {[%clk 0:02:42.8]} 16. c3 {[%clk 0:02:00.8]} 16... b5 {[%clk 0:02:38.6]} 17.
Qe3 {[%clk 0:01:48.8]} 17... Nc4 {[%clk 0:02:15.2]} 18. Bxc4 {[%clk 0:01:48.1]}
18... Rxc4 {[%clk 0:02:16.1]} 19. h4 {[%clk 0:01:42.1]} 19... g4 {[%clk
0:02:11.9]} 20. e5 {[%clk 0:01:33.8]} 20... Bxd5 {[%clk 0:01:48.3]} 21. Rxd5
{[%clk 0:01:31.5]} 21... b4 {[%clk 0:01:48.4]} 22. cxb4 {[%clk 0:00:52.9]} 22...
Rxb4 {[%clk 0:01:47]} 23. b3 {[%clk 0:00:53.3]} 23... Qa8 {[%clk 0:01:22.1]} 24.
Qd2 {[%clk 0:00:52.9]} 24... Rfb8 {[%clk 0:00:58.5]} 25. Rc1 {[%clk 0:00:44.7]}
25... Qb7 {[%clk 0:00:48.1]} 26. Rc3 {[%clk 0:00:36.2]} 26... a5 {[%clk
0:00:39.2]} 27. Rxa5 {[%clk 0:00:27.2]} 27... Qxg2 {[%clk 0:00:39]} 28. Rd5
{[%clk 0:00:21.3]} 28... Re4 {[%clk 0:00:36.5]} 29. Kb2 {[%clk 0:00:20.4]} 29...
Qf1 {[%clk 0:00:33]} 30. Rc2 {[%clk 0:00:20.3]} 30... Re1 {[%clk 0:00:31.9]} 31.
Ra5 {[%clk 0:00:13.1]} 31... Rd1 {[%clk 0:00:22.3]} 32. Qc3 {[%clk 0:00:10]}
32... dxe5 {[%clk 0:00:16.4]} 33. Ka3 {[%clk 0:00:09.8]} 33... Rdd8 {[%clk
0:00:14.9]} 34. Qc7 {[%clk 0:00:10.2]} 34... Ra8 {[%clk 0:00:14.7]} 35. Bxe5
{[%clk 0:00:08.6]} 35... Rxa5+ {[%clk 0:00:13.1]} 36. Qxa5 {[%clk 0:00:09.5]}
36... Qd3 {[%clk 0:00:13.2]} 37. Bxg7 {[%clk 0:00:07]} 37... Kxg7 {[%clk
0:00:13.7]} 38. Qe5+ {[%clk 0:00:07.6]} 38... Kg8 {[%clk 0:00:14.2]} 39. Rc4
{[%clk 0:00:07.7]} 39... Qd2 {[%clk 0:00:13.9]} 40. Rxg4+ {[%clk 0:00:07.2]}
40... Kf8 {[%clk 0:00:14.1]} 41. Qh8# {[%clk 0:00:07.5]} 1-0

[Event "Early-Titled-Tuesday-Blitz-February-06-2024"]
[Site "Chess.com"]
[Date "2024.02.06"]
[Round "1"]
[White "DarkAlekhine"]
[Black "ljuks68"]
[Result "1-0"]
[WhiteElo "2750"]
[BlackElo "2417"]
[TimeControl "180+1"]
[EndTime "8:07:36 PST"]
[Termination "DarkAlekhine won on time"]

1. e4 {[%clk 0:03:00.9]} 1... e6 {[%clk 0:02:55.9]} 2. d4 {[%clk 0:03:00.2]}
2... d5 {[%clk 0:02:56]} 3. Nd2 {[%clk 0:03:00.8]} 3... Nf6 {[%clk 0:02:56.2]}
4. e5 {[%clk 0:03:00.5]} 4... Nfd7 {[%clk 0:02:56.6]} 5. Bd3 {[%clk 0:03:01.1]}
5... c5 {[%clk 0:02:57]} 6. c3 {[%clk 0:03:01.1]} 6... Nc6 {[%clk 0:02:57.1]} 7.
Ne2 {[%clk 0:03:01.5]} 7... cxd4 {[%clk 0:02:57.7]} 8. cxd4 {[%clk 0:03:02.4]}
8... f6 {[%clk 0:02:57.4]} 9. exf6 {[%clk 0:03:02.9]} 9... Nxf6 {[%clk
0:02:57.7]} 10. Nf3 {[%clk 0:03:03.3]} 10... Bd6 {[%clk 0:02:58.2]} 11. O-O
{[%clk 0:03:03.1]} 11... O-O {[%clk 0:02:58.8]} 12. Bf4 {[%clk 0:03:02.8]} 12...
Bxf4 {[%clk 0:02:55.5]} 13. Nxf4 {[%clk 0:03:03.7]} 13... Ne4 {[%clk 0:02:47]}
14. Nh5 {[%clk 0:03:03.8]} 14... Bd7 {[%clk 0:02:21.6]} 15. Ng3 {[%clk 0:02:58]}
15... Nxg3 {[%clk 0:02:11.5]} 16. hxg3 {[%clk 0:02:57.2]} 16... Qf6 {[%clk
0:02:12.1]} 17. Qd2 {[%clk 0:02:48.5]} 17... e5 {[%clk 0:02:02]} 18. Nxe5 {[%clk
0:02:43.3]} 18... Nxe5 {[%clk 0:02:02.3]} 19. dxe5 {[%clk 0:02:44.2]} 19... Qxe5
{[%clk 0:02:03]} 20. Rae1 {[%clk 0:02:44.1]} 20... Qf6 {[%clk 0:02:03.2]} 21.
Qb4 {[%clk 0:02:12]} 21... Bc6 {[%clk 0:02:01.7]} 22. Re2 {[%clk 0:01:06.9]}
22... Rae8 {[%clk 0:01:57.1]} 23. Rfe1 {[%clk 0:01:07]} 23... Qf7 {[%clk
0:01:11.9]} 24. f3 {[%clk 0:00:58.4]} 24... Rxe2 {[%clk 0:01:08.7]} 25. Rxe2
{[%clk 0:00:58.7]} 25... Re8 {[%clk 0:01:08.9]} 26. Rxe8+ {[%clk 0:00:48.2]}
26... Qxe8 {[%clk 0:01:08.8]} 27. Kf2 {[%clk 0:00:47.5]} 27... Qe5 {[%clk
0:00:58.3]} 28. Qc3 {[%clk 0:00:39.4]} 28... d4 {[%clk 0:00:31.8]} 29. Qc4+
{[%clk 0:00:37.6]} 29... Bd5 {[%clk 0:00:07.2]} 30. Qc8+ {[%clk 0:00:29.6]}
30... Kf7 {[%clk 0:00:07.6]} 31. Bxh7 {[%clk 0:00:15.3]} 31... Bc6 {[%clk
0:00:07.3]} 32. Qf5+ {[%clk 0:00:10.6]} 32... Qxf5 {[%clk 0:00:07.1]} 33. Bxf5
{[%clk 0:00:11.5]} 33... Kf6 {[%clk 0:00:06]} 34. Bd3 {[%clk 0:00:11.5]} 34...
Ke5 {[%clk 0:00:06.6]} 35. f4+ {[%clk 0:00:11]} 35... Kd5 {[%clk 0:00:06.1]} 36.
a3 {[%clk 0:00:11]} 36... Kc5 {[%clk 0:00:05]} 37. g4 {[%clk 0:00:11.2]} 37...
Bd5 {[%clk 0:00:01.8]} 38. g3 {[%clk 0:00:11.1]} 1-0

[Event "Early-Titled-Tuesday-Blitz-February-06-2024"]
[Site "Chess.com"]
[Date "2024.02.06"]
[Round "1"]
[White "Leonid_Starozhilov"]
[Black "UK_23"]
[Result "1/2-1/2"]
[WhiteElo "2732"]
[BlackElo "2421"]
[TimeControl "180+1"]
[EndTime "8:07:36 PST"]
[Termination "Game drawn by repetition"]

1. e4 {[%clk 0:03:00.9]} 1... e5 {[%clk 0:02:58]} 2. Nf3 {[%clk 0:03:00.4]} 2...
Nf6 {[%clk 0:02:58.6]} 3. Nc3 {[%clk 0:03:00.5]} 3... Bb4 {[%clk 0:02:57.6]} 4.
Nxe5 {[%clk 0:02:56.4]} 4... O-O {[%clk 0:02:57.3]} 5. Nd3 {[%clk 0:02:56.6]}
5... Bxc3 {[%clk 0:02:56.2]} 6. dxc3 {[%clk 0:02:57.5]} 6... Re8 {[%clk
0:02:56]} 7. Be2 {[%clk 0:02:57.6]} 7... Nxe4 {[%clk 0:02:55.4]} 8. O-O {[%clk
0:02:57.6]} 8... d6 {[%clk 0:02:56.1]} 9. Nf4 {[%clk 0:02:54.3]} 9... Nd7 {[%clk
0:02:53.1]} 10. Be3 {[%clk 0:02:49.9]} 10... Ndf6 {[%clk 0:02:34.6]} 11. h3
{[%clk 0:02:41.1]} 11... b6 {[%clk 0:02:33.1]} 12. Bf3 {[%clk 0:02:36.5]} 12...
Bb7 {[%clk 0:02:33.6]} 13. Re1 {[%clk 0:02:35.8]} 13... Qd7 {[%clk 0:02:23.4]}
14. Nh5 {[%clk 0:01:56.9]} 14... Nxh5 {[%clk 0:02:10.9]} 15. Bxh5 {[%clk
0:01:57.8]} 15... Nf6 {[%clk 0:02:10.2]} 16. Bf3 {[%clk 0:01:47.7]} 16... Bxf3
{[%clk 0:02:09.6]} 17. Qxf3 {[%clk 0:01:48.6]} 17... Qb5 {[%clk 0:02:10]} 18. b3
{[%clk 0:01:36]} 18... Qd5 {[%clk 0:02:03.9]} 19. Qxd5 {[%clk 0:01:14.8]} 19...
Nxd5 {[%clk 0:02:04.8]} 20. Bd2 {[%clk 0:01:15.4]} 20... f5 {[%clk 0:01:59.4]}
21. c4 {[%clk 0:01:12.5]} 21... Nf6 {[%clk 0:01:58.5]} 22. f3 {[%clk 0:01:11.4]}
22... Kf7 {[%clk 0:01:57.9]} 23. Kf2 {[%clk 0:01:07.4]} 23... Nd7 {[%clk
0:01:56]} 24. Bc3 {[%clk 0:00:58.1]} 24... a5 {[%clk 0:01:53.9]} 25. a4 {[%clk
0:00:50.9]} 25... Nc5 {[%clk 0:01:51.8]} 26. Rad1 {[%clk 0:00:44.7]} 26... g6
{[%clk 0:01:49.5]} 27. Bd4 {[%clk 0:00:39.5]} 27... Ne6 {[%clk 0:01:48.3]} 28.
Be3 {[%clk 0:00:37]} 28... Re7 {[%clk 0:01:46.1]} 29. h4 {[%clk 0:00:20.1]}
29... Rae8 {[%clk 0:01:45.7]} 30. Bg5 {[%clk 0:00:13.7]} 30... Nxg5 {[%clk
0:01:44.2]} 31. hxg5 {[%clk 0:00:14.6]} 31... Rxe1 {[%clk 0:01:36.8]} 32. Rxe1
{[%clk 0:00:15.5]} 32... Rxe1 {[%clk 0:01:37]} 33. Kxe1 {[%clk 0:00:16.4]} 33...
f4 {[%clk 0:01:30]} 34. Kf2 {[%clk 0:00:13.8]} 34... Ke6 {[%clk 0:01:30.3]} 35.
g4 {[%clk 0:00:11.5]} 35... fxg3+ {[%clk 0:00:46.8]} 36. Kxg3 {[%clk 0:00:12.4]}
36... Kf5 {[%clk 0:00:40.1]} 37. f4 {[%clk 0:00:11.8]} 37... Ke4 {[%clk
0:00:40.5]} 38. Kg4 {[%clk 0:00:08.7]} 38... c6 {[%clk 0:00:38.5]} 39. Kg3
{[%clk 0:00:07.1]} 39... d5 {[%clk 0:00:32.4]} 40. cxd5 {[%clk 0:00:07.1]} 40...
cxd5 {[%clk 0:00:33.3]} 41. Kg4 {[%clk 0:00:06.5]} 41... d4 {[%clk 0:00:26.1]}
42. Kg3 {[%clk 0:00:05.9]} 42... d3 {[%clk 0:00:22.4]} 43. cxd3+ {[%clk
0:00:06.8]} 43... Kxd3 {[%clk 0:00:23.3]} 44. Kg4 {[%clk 0:00:07.2]} 44... Ke4
{[%clk 0:00:14.9]} 45. Kg3 {[%clk 0:00:07.2]} 45... Ke3 {[%clk 0:00:15.1]} 46.
Kg4 {[%clk 0:00:07.7]} 46... Ke4 {[%clk 0:00:15.6]} 47. Kg3 {[%clk 0:00:08.3]}
47... Ke3 {[%clk 0:00:16.1]} 48. Kg4 {[%clk 0:00:09]} 48... Ke4 {[%clk
0:00:16.6]} 1/2-1/2